bitfinex/quotes_ETHUSD_20250623
["timestamp","ask_amount","ask_price","bid_price","bid_amount"]
[1750684396202,17.385,2258.2,2257.7,0.8123]
[1750684396407,9.846,2258.2,2257.8,1.52417647]
[1750684397543,9.846,2258.2,2258.0,4.42859678]
[1750684397544,7.76,2258.2,2258.0,4.42859678]
[1750684397701,7.12285763,2258.9,2258.3,4.4280324]
[1750684397901,7.12285763,2258.9,2258.4,4.42780879]
[1750684398106,7.12285763,2258.9,2258.5,0.7962]
[1750684398341,2.054,2259.0,2258.6,0.52240088]
[1750684398543,2.054,2259.0,2258.8,0.7962]
[1750684399606,2.054,2259.0,2258.6,0.52240088]
[1750684399805,2.054,2259.0,2258.5,0.7962]
[1750684400628,2.054,2259.0,2258.6,10.0]
[1750684400835,9.70585763,2259.5,2258.7,5.22341914]
[1750684401102,7.538,2259.4,2258.7,5.22341914]
[1750684401941,14.66085763,2259.5,2258.8,0.7962]
[1750684402239,14.66085763,2259.5,2258.8,3.7158385]
[1750684402609,14.66085763,2259.5,2258.8,0.7962]
[1750684402944,0.529,2259.4,2258.8,0.7962]
[1750684403841,0.55,2259.3,2258.1,4.42842328]
[1750684404003,0.55,2259.3,2258.4,0.7859]
[1750684404804,0.529,2259.2,2258.4,0.7859]
[1750684405025,9.583,2259.1,2258.4,0.7859]
[1750684405209,1.0112,2259.0,2258.4,0.7859]
[1750684406337,9.583,2259.1,2258.4,0.7859]
[1750684409124,11.079,2259.0,2257.9,0.8274]
[1750684409336,10.55,2259.0,2257.9,0.8274]
[1750684409541,0.55,2258.8,2257.9,0.8274]
[1750684409727,0.55,2258.8,2258.0,0.23515765]
[1750684409921,0.55,2258.8,2257.9,0.8274]
[1750684409922,0.529,2258.7,2257.9,0.8274]
[1750684410123,9.568,2258.6,2257.9,0.8274]
[1750684412532,0.529,2258.7,2257.9,0.8274]
[1750684412736,9.561,2258.6,2257.9,0.8274]
[1750684412935,2.053,2258.6,2257.9,4.42888645]
[1750684413131,2.053,2258.6,2258.0,1.69558198]
[1750684413132,9.561,2258.6,2258.0,1.69558198]
[1750684413960,0.529,2258.5,2258.0,1.69558198]
[1750684415630,0.529,2258.5,2258.0,0.8098]
[1750684419174,0.529,2258.3,2257.5,0.8059]
[1750684420163,0.529,2258.3,2257.1,0.8137]
[1750684420164,0.41311189,2258.2,2257.1,0.8137]
[1750684420370,2.054,2258.1,2257.2,1.08137]
[1750684420667,8.024,2258.0,2257.2,1.51542387]
[1750684420833,8.024,2258.0,2257.2,1.08137]
[1750684421030,0.529,2257.8,2256.6,1.96684505]
[1750684421264,0.41321146,2257.7,2256.7,0.7998]
[1750684421469,2.054,2257.6,2256.7,10.7998]
[1750684421666,2.054,2257.6,2256.7,0.7998]
[1750684421873,2.054,2257.6,2256.8,0.27666451]
[1750684422885,0.529,2257.5,2256.8,0.27666451]
[1750684423089,7.497,2257.4,2256.8,0.27666451]
[1750684426396,7.65185763,2257.3,2256.4,0.7612]
[1750684426696,7.12285763,2257.3,2256.4,0.7612]
[1750684426897,0.529,2257.2,2256.4,0.7612]
[1750684427062,2.027,2257.1,2256.0,0.7612]
[1750684427388,0.529,2257.0,2256.1,1.67609843]
[1750684427596,7.12285763,2256.9,2256.1,1.67609843]
[1750684427757,0.529,2256.8,2256.0,0.7612]
[1750684427957,0.529,2256.8,2255.6,13.97278434]
[1750684427958,14.61885763,2256.7,2255.8,0.7561]
[1750684428178,2.027,2256.6,2255.8,0.7561]
[1750684428379,14.61885763,2256.7,2256.2,10.0]
[1750684428380,7.12285763,2256.7,2256.2,10.0]
[1750684428595,7.12285763,2256.7,2256.3,15.18805628]
[1750684428816,7.12285763,2256.7,2256.4,2.91608406]
[1750684429119,7.12285763,2256.7,2256.3,0.7561]
[1750684431381,2.027,2257.0,2256.3,0.7561]
[1750684431382,0.529,2256.9,2256.3,0.7561]
[1750684434715,0.529,2256.8,2255.9,4.43274835]
[1750684435022,0.529,2256.8,2256.1,0.8204]
[1750684435384,0.529,2256.8,2255.9,0.8204]
[1750684435583,0.2557,2256.7,2255.9,1.94620353]
[1750684436389,0.2557,2256.7,2255.9,0.8204]
[1750684436584,2.028,2256.6,2255.9,10.8204]
[1750684438118,2.028,2256.6,2255.9,0.8204]
[1750684438119,0.529,2256.5,2255.9,0.8204]
[1750684438293,0.529,2256.5,2255.7,0.823]
[1750684438900,0.529,2256.5,2255.7,5.25611703]
[1750684439117,0.529,2256.5,2255.7,0.823]
[1750684439419,0.529,2256.5,2255.8,1.0823]
[1750684439718,0.529,2256.5,2255.7,0.823]
[1750684440106,0.529,2256.5,2255.8,4.4328417]
[1750684440508,0.529,2256.5,2255.9,4.43269178]
[1750684440687,0.529,2256.5,2255.8,4.43291898]
[1750684440884,0.529,2256.5,2255.7,0.823]
[1750684441122,0.529,2256.5,2255.3,0.2257069]
[1750684441123,17.65185763,2256.5,2255.3,0.2257069]
[1750684441300,0.529,2256.4,2255.3,0.2257069]
[1750684441500,0.529,2256.4,2255.3,4.6597033]
[1750684441909,0.529,2256.4,2255.4,4.43369818]
[1750684442236,0.529,2256.4,2255.3,0.2257069]
[1750684442237,0.529,2256.4,2255.3,4.65960653]
[1750684442386,0.529,2256.2,2255.4,6.78386833]
[1750684442590,2.028,2256.1,2255.4,6.78376695]
[1750684443207,2.028,2256.1,2255.5,4.43356809]
[1750684443427,2.028,2256.1,2255.7,4.43321048]
[1750684443592,0.529,2256.2,2255.8,5.87632701]
[1750684443787,0.529,2256.4,2256.0,4.43254387]
[1750684444147,0.529,2256.4,2256.0,4.43245803]
[1750684444287,0.529,2256.4,2255.9,5.24220965]
[1750684444488,0.529,2256.4,2256.0,4.43261905]
[1750684444827,9.15085763,2256.5,2256.1,4.43229798]
[1750684445030,9.15085763,2256.5,2256.0,1.11181497]
[1750684445229,9.15085763,2256.5,2256.0,5.54431892]
[1750684445531,9.15085763,2256.5,2256.1,4.43239898]
[1750684445696,9.15085763,2256.5,2256.0,5.54432227]
[1750684445894,9.15085763,2256.5,2256.1,1.07865419]
[1750684446127,9.15085763,2256.5,2256.1,5.51101147]
[1750684446433,9.15085763,2256.5,2256.0,4.43248697]
[1750684446731,9.15085763,2256.5,2255.9,5.24221905]
[1750684446929,9.15085763,2256.5,2255.9,5.24215676]
[1750684447105,9.15085763,2256.5,2256.0,4.43258891]
[1750684447503,9.15085763,2256.5,2256.0,4.432468]
[1750684447717,9.15085763,2256.5,2256.1,4.95659968]
[1750684448027,9.15085763,2256.5,2256.1,0.5241968]
[1750684448592,7.12285763,2256.5,2256.1,4.95653424]
[1750684448796,7.12285763,2256.5,2256.1,0.5241968]
[1750684449295,7.12285763,2256.5,2256.1,4.95645697]
[1750684449497,7.12285763,2256.5,2256.2,5.37109134]
[1750684449692,7.12285763,2256.5,2256.2,0.9388987]
[1750684450129,0.529,2256.4,2255.8,1.44332105]
[1750684450326,0.529,2256.4,2255.8,0.55]
[1750684450527,2.557,2256.6,2256.1,0.8246]
[1750684451424,2.557,2256.6,2256.1,5.25698995]
[1750684452028,2.028,2256.7,2256.2,4.43222697]
[1750684452234,7.12285763,2257.0,2256.1,4.4324196]
[1750684452437,7.12285763,2257.0,2256.2,2.67122039]
[1750684452638,0.41431653,2256.9,2256.3,10.0]
[1750684452837,7.12285763,2257.0,2256.3,10.0]
[1750684453039,7.12285763,2257.0,2256.4,4.43172129]
[1750684453040,0.41434083,2256.9,2256.4,4.43172129]
[1750684453243,7.12285763,2257.0,2256.3,10.0]
[1750684453244,7.12285763,2257.0,2256.3,14.43195098]
[1750684453445,7.12285763,2257.0,2256.4,6.14203075]
[1750684453741,7.12285763,2257.0,2256.4,1.71031714]
[1750684454110,7.12285763,2257.0,2256.4,1.66031714]
[1750684454443,7.12285763,2257.0,2256.4,6.09204094]
[1750684454740,7.12285763,2257.0,2256.3,10.0]
[1750684454915,0.529,2256.8,2256.3,10.0]
[1750684455512,0.529,2256.8,2256.4,4.43183082]
[1750684455842,7.65185763,2257.0,2256.5,4.43154406]
[1750684456143,0.41459022,2256.9,2256.3,4.43193961]
[1750684456343,7.65185763,2257.0,2256.4,0.710316]
[1750684456546,7.65185763,2257.0,2256.7,10.0]
[1750684456920,11.174,2257.3,2256.9,10.0]
[1750684457335,0.529,2257.3,2256.9,10.0]
[1750684458022,0.529,2257.3,2256.9,4.43068616]
[1750684458347,0.529,2257.3,2256.9,0.56897043]
[1750684458655,0.529,2257.3,2256.9,4.99977836]
[1750684459145,0.529,2257.3,2256.9,0.56897043]
[1750684459810,0.529,2257.3,2256.7,5.69019569]
[1750684460212,0.529,2257.3,2256.7,0.8163]
[1750684460414,0.529,2257.3,2256.8,14.43095642]
[1750684460816,0.529,2257.3,2256.8,10.0]
[1750684461248,0.529,2257.3,2256.8,14.43100664]
[1750684461551,0.529,2257.3,2256.8,16.39884961]
[1750684461725,0.529,2257.3,2256.8,6.39884961]
[1750684461921,0.529,2257.3,2256.8,4.43100664]
[1750684463118,0.529,2257.3,2256.8,4.43090072]
[1750684463759,0.529,2257.3,2256.7,5.2474289]
[1750684464719,0.529,2257.3,2256.8,4.43105158]
[1750684464917,0.529,2257.3,2256.7,10.0]
[1750684465251,0.529,2257.3,2256.7,16.44357817]
[1750684466221,0.529,2257.3,2256.6,10.0]
[1750684466416,0.529,2257.3,2256.7,4.43112192]
[1750684467766,0.529,2257.3,2256.6,14.43144553]
[1750684468272,0.529,2257.3,2256.7,4.43124843]
[1750684469139,0.529,2257.3,2256.8,4.43103044]
[1750684469584,0.529,2257.3,2256.9,4.43081175]
[1750684469742,0.529,2257.3,2256.8,1.88622789]
[1750684470384,0.529,2257.3,2256.6,15.26309981]
[1750684470586,0.529,2257.3,2256.6,14.43143651]
[1750684470755,0.529,2257.3,2256.6,10.0]
[1750684470951,0.529,2257.3,2256.6,14.43143057]
[1750684472573,0.529,2257.3,2256.6,18.86270987]
[1750684472779,0.529,2257.3,2256.6,16.50972749]
[1750684472939,0.529,2257.3,2256.6,20.94100665]
[1750684473142,0.529,2257.3,2256.7,4.43122778]
[1750684473342,0.529,2257.3,2256.6,16.50981551]
[1750684473955,7.65185763,2257.3,2256.6,16.50981551]
[1750684474168,1.71628576,2257.2,2256.6,16.5097288]
[1750684474482,7.65185763,2257.3,2256.7,4.43123958]
[1750684474780,7.65185763,2257.3,2256.6,16.50980721]
[1750684475075,7.65185763,2257.3,2256.6,16.50974248]
[1750684475681,0.529,2257.2,2256.6,12.07844819]
[1750684475890,0.529,2257.2,2256.5,0.43555598]
[1750684475891,0.529,2257.2,2256.5,10.43555598]
[1750684476191,0.529,2257.2,2256.5,4.43163272]
[1750684476346,0.529,2257.2,2256.4,15.14206346]
[1750684477268,0.529,2257.2,2256.5,4.43163874]
[1750684477945,0.529,2257.2,2256.5,4.87986013]
[1750684478146,2.24528576,2257.2,2256.5,4.87986013]
[1750684478446,2.24528576,2257.2,2256.5,0.44822139]
[1750684478642,0.529,2257.1,2256.4,5.14205496]
[1750684480066,0.529,2257.1,2256.4,5.14199819]
[1750684480266,0.529,2257.1,2256.5,4.43162511]
[1750684480493,1.46581434,2257.1,2256.5,4.43162511]
[1750684480794,1.46581434,2257.1,2256.4,5.14204961]
[1750684480997,1.46581434,2257.1,2256.5,4.43162217]
[1750684481213,1.46581434,2257.1,2256.5,14.43162217]
[1750684481355,0.529,2257.1,2256.5,14.43156298]
[1750684481557,0.529,2257.1,2256.5,14.43156655]
[1750684482998,0.529,2257.1,2256.6,4.43130461]
[1750684483214,0.529,2257.1,2256.5,14.88015206]
[1750684483602,0.529,2257.1,2256.6,13.98499976]
[1750684483799,0.529,2257.1,2256.7,4.43123652]
[1750684483968,0.529,2257.1,2256.8,13.9846024]
[1750684484414,0.529,2257.1,2256.8,9.55369744]
[1750684484902,0.529,2257.1,2256.7,4.43112086]
[1750684486242,7.65185763,2257.3,2256.7,8.86219303]
[1750684486411,0.41541348,2257.2,2256.7,7.68963963]
[1750684486582,7.65185763,2257.3,2256.7,3.25856746]
[1750684486914,0.41547641,2257.2,2256.7,3.25856746]
[1750684487210,0.41547703,2257.1,2256.7,3.25856746]
[1750684487374,7.65185763,2257.3,2256.7,3.25856746]
[1750684487572,0.41548252,2257.2,2256.5,20.00233205]
[1750684487779,0.529,2257.0,2256.4,0.710316]
[1750684487976,8.015,2257.0,2256.2,15.23105874]
[1750684488172,0.41552563,2256.9,2256.4,10.0]
[1750684488376,8.015,2257.0,2256.4,10.0]
[1750684488608,0.4155321,2256.9,2256.4,10.0]
[1750684488808,8.015,2257.0,2256.4,10.0]
[1750684488997,9.0185,2257.0,2256.4,10.0]
[1750684489920,0.529,2256.8,2256.1,4.43236217]
[1750684490118,0.41549622,2256.7,2256.1,4.43236217]
[1750684490293,0.41549622,2256.6,2256.0,4.43248807]
[1750684490651,0.529,2256.8,2255.9,0.7828]
[1750684490820,0.529,2256.4,2255.8,0.44971584]
[1750684491003,0.529,2256.4,2255.7,5.21599117]
[1750684491521,0.4155717,2256.3,2255.7,5.21599117]
[1750684491685,0.529,2256.4,2255.7,14.76968861]
[1750684491889,0.529,2256.4,2255.8,10.0]
[1750684492334,1.5324,2256.4,2255.8,10.0]
[1750684492486,1.5324,2256.4,2255.8,9.95]
[1750684492686,1.5324,2256.4,2255.7,13.98690254]
[1750684493628,1.5324,2256.4,2255.7,14.4259529]
[1750684493816,1.0034,2256.4,2255.7,9.9927478]
[1750684493992,0.529,2256.3,2255.7,9.9927478]
[1750684495138,0.529,2256.3,2255.7,14.42594525]
[1750684495724,0.529,2256.3,2255.7,17.38913089]
[1750684495934,0.529,2256.3,2255.8,4.43300483]
[1750684496505,0.529,2256.3,2255.9,9.55369744]
[1750684499542,0.529,2256.3,2256.1,9.55369744]
[1750684499759,0.529,2256.5,2256.1,13.98602826]
[1750684499968,0.529,2256.5,2256.3,9.55369744]
[1750684500309,0.529,2256.5,2256.2,1.47699283]
[1750684500553,7.65185763,2256.7,2256.3,4.4319199]
[1750684500756,0.529,2256.7,2256.3,4.4319199]
[1750684500909,0.529,2256.7,2256.3,15.97511182]
[1750684501337,0.529,2256.7,2256.3,11.54319192]
[1750684501824,0.529,2256.7,2256.3,1.98949448]
[1750684502017,0.529,2256.7,2256.1,13.98612366]
[1750684502422,0.529,2256.7,2255.8,10.36309744]
[1750684502748,0.529,2256.5,2255.8,10.0]
[1750684502963,7.483,2256.4,2255.7,12.95593344]
[1750684503262,0.529,2256.3,2255.7,17.38914235]
[1750684503560,0.529,2256.3,2255.7,12.95593344]
[1750684503860,0.529,2256.1,2255.4,14.76959846]
[1750684504209,0.529,2256.1,2255.5,10.0]
[1750684504851,0.529,2256.1,2255.8,9.55369744]
[1750684505249,0.529,2256.1,2255.6,14.53703095]
[1750684505551,0.529,2256.1,2255.7,2.4537031]
[1750684505912,0.529,2256.1,2255.7,2.89244753]
[1750684506765,0.529,2256.5,2256.0,9.55369744]
[1750684506950,9.504,2256.4,2256.0,9.55369744]
[1750684507117,10.033,2256.5,2256.0,9.55369744]
[1750684507518,11.74858576,2256.5,2255.8,9.55369744]
[1750684507754,0.529,2256.4,2255.8,9.55369744]
[1750684508318,0.529,2256.3,2255.5,10.0]
[1750684508561,0.529,2256.3,2255.5,23.98716256]
[1750684508716,0.529,2256.3,2255.7,9.55369744]
[1750684511936,9.503,2256.2,2255.7,13.98688657]
[1750684512132,8.01,2256.3,2255.9,9.55369744]
[1750684512578,0.529,2256.3,2255.9,9.55369744]
[1750684513065,0.529,2256.3,2255.9,11.02850681]
[1750684514169,14.60385763,2256.4,2256.1,9.55369744]
[1750684514170,7.12285763,2256.4,2256.1,9.55369744]
[1750684514460,8.01,2256.5,2256.1,9.55369744]
[1750684515533,0.529,2256.5,2256.2,4.43212003]
[1750684515734,10.0,2256.9,2256.1,14.78339912]
[1750684515735,0.9,2256.3,2256.1,14.78339912]
[1750684515936,0.9,2256.3,2256.2,10.0]
[1750684516287,7.48,2256.7,2256.2,10.0]
[1750684516466,0.41487361,2256.6,2256.2,10.0]
[1750684516673,7.48,2256.7,2256.2,10.0]
[1750684516872,9.496,2256.7,2256.2,14.4322293]
[1750684517171,9.496,2256.7,2256.2,10.0]
[1750684517952,0.41486542,2256.6,2256.2,10.0]
[1750684518159,0.529,2256.5,2256.2,10.0]
[1750684519458,0.529,2256.5,2256.1,10.0]
[1750684520837,0.9,2256.3,2256.1,10.0]
[1750684521744,0.9,2256.3,2256.1,23.98601713]
[1750684521951,0.9,2256.3,2256.2,2.84185209]
[1750684523269,0.9,2256.3,2256.2,8.07238327]
[1750684523438,0.9,2256.3,2256.2,3.64015209]
[1750684523634,0.529,2256.7,2256.2,8.07236077]
[1750684524568,0.529,2256.7,2256.2,3.64015209]
[1750684525447,0.529,2256.7,2256.2,8.07237761]
[1750684525976,0.9,2256.5,2256.3,12.76260751]
[1750684526292,0.9,2256.5,2256.3,22.31630495]
[1750684526572,0.9,2256.5,2256.4,4.43183832]
[1750684526777,7.65185763,2257.0,2256.4,14.98183832]
[1750684526977,0.41489672,2256.9,2256.5,9.55369744]
[1750684527172,7.65185763,2257.0,2256.5,12.72671444]
[1750684527379,17.14385763,2257.0,2256.5,12.72671444]
[1750684527879,9.66785763,2257.0,2256.5,12.72671444]
[1750684528258,7.65185763,2257.0,2256.5,12.72671444]
[1750684529957,7.12285763,2257.0,2256.5,17.15816939]
[1750684530171,7.12285763,2257.0,2256.6,7.73339495]
[1750684530747,0.9,2256.8,2256.6,7.73339495]
[1750684531188,0.9,2256.8,2256.7,9.55369744]
[1750684531348,0.9,2256.8,2256.7,23.9849466]
[1750684531680,7.12285763,2257.5,2256.7,23.9849466]
[1750684531681,7.474,2257.5,2257.2,5.19725742]
[1750684531866,2.016,2257.6,2257.2,6.15995881]
[1750684532073,2.016,2257.6,2257.2,6.15989409]
[1750684532786,0.529,2257.9,2257.5,9.55369744]
[1750684532961,9.489,2258.0,2257.5,9.55369744]
[1750684533160,9.489,2258.0,2257.3,14.42996322]
[1750684533161,9.489,2258.0,2257.4,4.42986662]
[1750684533478,9.489,2258.0,2257.5,2.39835641]
[1750684533679,9.489,2258.0,2257.3,10.0]
[1750684534080,9.489,2258.0,2257.2,1.72978178]
[1750684534250,9.489,2258.0,2257.3,10.0]
[1750684534453,9.489,2258.0,2257.3,14.43006866]
[1750684534755,9.487,2258.0,2257.4,13.98353837]
[1750684534960,9.487,2258.0,2257.5,2.8413607]
[1750684535170,7.471,2258.0,2257.5,7.27101044]
[1750684535569,7.471,2258.0,2257.6,0.8081]
[1750684535758,7.471,2258.0,2257.6,5.23750729]
[1750684536295,20.666,2258.1,2257.6,5.23750729]
[1750684536478,20.666,2258.1,2257.7,0.8078868]
[1750684537144,11.18,2258.1,2257.6,0.8081]
[1750684537378,20.665,2258.1,2257.6,0.8081]
[1750684537797,20.665,2258.1,2257.6,5.23756996]
[1750684538082,12.666,2258.1,2257.8,4.42906913]
[1750684538248,12.666,2258.1,2257.9,1.39827666]
[1750684538450,2.015,2258.1,2258.0,0.7653]
[1750684538879,2.015,2258.1,2257.9,1.39827666]
[1750684539385,2.015,2258.1,2257.6,5.74469735]
[1750684539580,2.015,2258.1,2257.6,0.7653]
[1750684539757,0.529,2258.0,2257.6,5.19475592]
[1750684539961,2.015,2258.1,2257.6,5.19475592]
[1750684540584,2.015,2258.1,2257.5,13.98327032]
[1750684540779,2.015,2258.1,2257.6,1.39832703]
[1750684544496,2.015,2258.1,2257.6,5.82779723]
[1750684545191,2.015,2258.1,2257.6,1.39832703]
[1750684545394,0.529,2258.0,2257.2,0.96278178]
[1750684545597,0.529,2257.9,2257.0,5.22147903]
[1750684545900,0.529,2257.7,2257.1,2.66709184]
[1750684546700,0.529,2257.7,2257.3,9.55369744]
[1750684546701,1.429,2257.7,2257.3,9.55369744]
[1750684546890,0.9,2257.7,2257.5,9.55369744]
[1750684547397,0.9,2257.7,2257.6,4.42948263]
[1750684547583,0.9,2257.7,2257.6,6.35342091]
[1750684548299,0.9,2257.7,2257.6,1.92393828]
[1750684548611,0.9,2257.7,2257.6,6.35342091]
[1750684549283,0.9,2257.7,2257.6,1.92393828]
[1750684551678,0.9,2257.7,2257.2,15.7962825]
[1750684551878,1.429,2257.7,2257.2,11.3661]
[1750684552207,1.429,2257.7,2257.2,10.8161]
[1750684552362,3.437,2257.7,2257.2,10.0]
[1750684552967,3.437,2257.7,2256.8,8.012]
[1750684552968,7.991,2257.6,2256.8,5.21374296]
[1750684553282,0.529,2257.5,2256.8,0.7828]
[1750684554022,0.529,2257.5,2256.7,9.9956001]
[1750684554167,0.529,2257.4,2256.7,0.44190266]
[1750684554371,0.529,2257.4,2256.6,10.0]
[1750684554714,0.529,2257.2,2256.4,0.8308]
[1750684554913,2.008,2257.1,2256.4,10.8308]
[1750684555324,2.008,2257.1,2256.5,13.98526376]
[1750684555619,2.008,2257.1,2256.5,9.55369744]
[1750684556141,2.008,2257.0,2256.5,9.55369744]
[1750684556441,2.008,2257.0,2256.6,1.48162455]
[1750684556641,2.008,2257.0,2256.4,5.26254807]
[1750684556817,2.008,2257.1,2256.5,4.4316382]
[1750684557022,2.008,2257.1,2256.4,5.26252993]
[1750684558145,2.008,2257.1,2256.4,0.8308]
[1750684558325,2.008,2257.1,2256.2,0.7721]
[1750684558326,0.529,2257.0,2256.2,0.7721]
[1750684558529,0.529,2257.0,2256.2,15.20430351]
[1750684559206,0.529,2257.0,2256.2,29.21599457]
[1750684559405,0.529,2257.0,2256.3,4.43194797]
[1750684560439,0.529,2257.0,2256.2,29.21606174]
[1750684561238,0.529,2257.0,2256.2,33.64812693]
[1750684561488,0.529,2257.0,2256.4,4.43166566]
[1750684561696,0.529,2257.0,2256.6,4.43144143]
[1750684561985,0.529,2257.0,2256.6,4.43136763]
[1750684562280,0.529,2257.0,2256.5,18.44337695]
[1750684564659,0.529,2257.0,2256.4,4.43178593]
[1750684564860,0.529,2257.0,2256.4,8.1385348]
[1750684565561,0.529,2257.0,2256.5,4.43164122]
[1750684565766,0.529,2257.0,2256.4,8.13846895]
[1750684567183,0.529,2257.0,2256.5,4.431626]
[1750684567479,0.529,2257.0,2256.4,8.13846867]
[1750684567685,0.529,2257.0,2256.5,1.25704148]
[1750684568086,0.529,2257.0,2256.5,5.68866788]
[1750684570185,0.529,2257.2,2256.6,1.3395]
[1750684570371,7.65185763,2257.4,2256.8,18.44274148]
[1750684570683,7.65185763,2257.4,2256.9,1.84427415]
[1750684571187,7.65185763,2257.4,2256.7,4.43120526]
[1750684571490,7.65185763,2257.4,2256.7,4.43124456]
[1750684572085,17.11685763,2257.4,2256.7,4.43124916]
[1750684572289,17.11685763,2257.4,2256.8,4.43095053]
[1750684572789,17.11685763,2257.4,2256.7,4.87058008]
[1750684572965,17.11685763,2257.4,2256.8,2.06414338]
[1750684573162,0.529,2257.3,2256.5,1.25704148]
[1750684573365,0.529,2257.3,2256.6,4.4313475]
[1750684574389,0.529,2257.3,2256.5,14.43153973]
[1750684574780,0.529,2257.3,2256.5,10.0]
[1750684575092,0.529,2257.3,2256.6,4.43133198]
[1750684575279,0.529,2257.3,2256.7,1.88628896]
[1750684575479,0.529,2257.3,2256.6,4.43133198]
[1750684575693,0.529,2257.3,2256.6,4.43138741]
[1750684575893,0.529,2257.3,2256.7,4.43113134]
[1750684576700,0.529,2257.5,2257.0,4.43064561]
[1750684576865,0.529,2257.5,2257.0,0.52306456]
[1750684577274,0.529,2257.5,2256.7,1.76764984]
[1750684577465,0.529,2257.5,2256.8,4.43104494]
[1750684578183,0.529,2257.5,2256.7,9.29800954]
[1750684578493,0.529,2257.5,2256.7,14.41851238]
[1750684578792,0.529,2257.5,2256.8,4.4309305]
[1750684578993,0.529,2257.5,2256.9,15.8674408]
[1750684579564,0.529,2257.5,2256.9,1.88494429]
[1750684580068,0.529,2257.5,2256.9,15.867442]
[1750684580284,0.529,2257.5,2257.0,10.0]
[1750684580699,0.41464188,2257.4,2257.0,10.0]
[1750684581033,0.529,2257.5,2257.0,10.0]
[1750684581192,0.41467031,2257.4,2257.0,10.0]
[1750684581528,0.529,2257.5,2257.0,12.58676393]
[1750684581828,0.529,2257.5,2257.0,2.58676393]
[1750684582002,0.41466546,2257.4,2257.0,2.58676393]
[1750684582601,0.529,2257.5,2257.0,2.58676393]
[1750684582901,0.41500502,2257.4,2257.0,2.58676393]
[1750684583232,0.41500502,2257.4,2256.8,4.43090083]
[1750684583233,0.529,2257.5,2257.1,10.76548598]
[1750684585134,0.529,2257.5,2257.1,15.19594461]
[1750684585294,7.65185763,2257.7,2257.3,13.9816806]
[1750684585791,7.65185763,2257.7,2257.3,9.55164508]
[1750684585991,7.65185763,2257.7,2257.4,1.39817844]
[1750684586599,7.65185763,2257.7,2257.3,9.55164508]
[1750684586820,7.65185763,2257.7,2257.1,15.19584086]
[1750684587026,7.65185763,2257.7,2257.2,4.43026106]
[1750684587521,7.65185763,2257.7,2257.1,15.19582893]
[1750684587828,0.529,2257.6,2257.1,1.2138409]
[1750684588027,0.529,2257.6,2257.0,4.43056017]
[1750684588191,0.529,2257.6,2257.1,4.43039076]
[1750684588391,0.529,2257.6,2257.0,4.43056017]
[1750684588609,0.529,2257.6,2257.0,4.43049266]
[1750684588889,0.529,2257.6,2257.1,13.98200415]
[1750684589215,0.529,2257.6,2256.9,0.55]
[1750684589216,0.529,2257.6,2257.3,13.98163021]
[1750684589398,0.529,2257.6,2257.3,9.55164508]
[1750684590210,0.529,2257.6,2257.3,13.98166621]
[1750684590418,0.529,2257.6,2257.2,1.39820042]
[1750684591015,0.529,2257.6,2257.2,5.82846631]
[1750684591395,7.12285763,2257.7,2257.5,9.55164508]
[1750684591589,9.977,2257.8,2257.3,16.34864032]
[1750684591800,9.977,2257.8,2257.3,15.51964032]
[1750684592200,9.977,2257.8,2257.3,1.53801114]
[1750684592419,9.977,2257.8,2257.2,1.39820042]
[1750684593330,9.977,2257.8,2257.2,5.82844144]
[1750684595234,9.977,2257.8,2257.3,4.4300595]
[1750684595934,9.977,2257.8,2257.2,5.82836202]
[1750684597019,9.977,2257.8,2257.2,1.39820042]
[1750684597251,12.0393,2257.8,2257.2,1.39820042]
[1750684597539,12.0393,2257.8,2257.2,5.82845718]
[1750684598961,12.0393,2257.8,2257.2,1.39820042]
[1750684600512,11.5103,2257.8,2257.2,1.39820042]
[1750684600709,0.529,2257.7,2257.2,1.39820042]
[1750684600929,0.529,2257.7,2257.2,5.82844713]
[1750684601308,0.529,2257.7,2257.2,1.39820042]
[1750684602046,0.529,2257.7,2257.1,13.98200731]
[1750684602228,0.529,2257.7,2257.1,9.55164508]
[1750684602538,0.529,2257.7,2257.1,13.98203342]
[1750684602751,0.529,2257.7,2257.2,4.43023809]
[1750684603444,0.529,2257.7,2257.1,13.98200936]
[1750684603651,0.529,2257.7,2257.1,16.90606637]
[1750684603809,0.529,2257.7,2257.1,12.47570209]
[1750684604141,0.529,2257.7,2256.9,14.81042948]
[1750684604345,0.529,2257.5,2257.0,10.0]
[1750684604642,7.44,2257.4,2257.0,10.0]
[1750684604839,7.44,2257.4,2257.0,14.43064706]
[1750684605546,7.44,2257.4,2257.0,10.0]
[1750684606541,7.44,2257.4,2257.0,14.4306095]
[1750684606738,7.44,2257.4,2257.0,12.84132161]
[1750684607329,7.44,2257.4,2257.0,2.84132161]
[1750684607521,0.529,2257.3,2256.9,9.55164508]
[1750684607720,0.529,2257.3,2256.8,10.0]
[1750684608518,0.529,2257.3,2256.8,14.4310414]
[1750684609045,0.529,2257.3,2256.9,9.55164508]
[1750684609250,0.529,2257.3,2256.9,12.43742212]
[1750684612917,0.529,2257.3,2256.9,16.86827346]
[1750684613453,0.529,2257.3,2257.1,9.55164508]
[1750684615315,7.12285763,2257.7,2257.1,9.55164508]
[1750684615561,0.9440787,2257.6,2257.3,9.55164508]
[1750684615744,7.12285763,2257.7,2257.5,9.55164508]
[1750684615745,9.428,2257.7,2257.5,9.55164508]
[1750684616066,0.529,2258.0,2257.6,4.42945328]
[1750684616417,0.529,2258.0,2257.9,9.55164508]